bitfinex/quotes_ETHUSD_20250722
["timestamp","ask_amount","ask_price","bid_price","bid_amount"]
[1753207580135,1e-08,3700.0,3699.9,7.57959308]
[1753207581034,1e-08,3700.0,3699.9,10.57959308]
[1753207581210,1e-08,3700.0,3699.9,11.99654359]
[1753207581386,1e-08,3700.0,3699.9,12.78684359]
[1753207581591,1e-08,3700.0,3699.9,12.92124359]
[1753207582793,2.70270271,3700.0,3699.9,0.38531733]
[1753207583111,3.28010271,3700.0,3699.9,0.25091733]
[1753207583331,0.57740001,3700.0,3699.9,0.25091733]
[1753207584191,0.13440001,3700.0,3699.9,0.25091733]
[1753207584425,0.13440001,3700.0,3699.5,4.65193067]
[1753207584590,0.13440001,3700.0,3699.6,0.71784111]
[1753207584792,0.13440001,3700.0,3699.7,0.27797032]
[1753207584993,0.13440001,3700.0,3699.9,3.52957575]
[1753207585193,1e-08,3700.0,3699.9,11.43244461]
[1753207585500,1e-08,3700.0,3699.9,11.40541686]
[1753207585841,1e-08,3700.0,3699.9,12.82969053]
[1753207587907,1e-08,3700.0,3699.9,8.67169053]
[1753207588109,0.44300001,3700.0,3699.9,0.25094111]
[1753207588426,3.14570271,3700.0,3699.9,0.25094111]
[1753207589541,4.30600271,3700.0,3699.9,0.25094111]
[1753207589742,5.0205014,3700.0,3699.9,0.25094111]
[1753207590606,1e-08,3700.0,3699.9,0.25094111]
[1753207591936,1e-08,3700.0,3699.9,0.27796886]
[1753207592110,1e-08,3700.0,3699.9,2.98074461]
[1753207592310,1e-08,3700.0,3699.9,3.1967035]
[1753207592617,1e-08,3700.0,3699.9,4.1580035]
[1753207592817,1e-08,3700.0,3699.9,5.25989575]
[1753207594064,1e-08,3700.0,3699.9,8.25989575]
[1753207594360,1e-08,3700.0,3699.9,8.232868]
[1753207595561,1e-08,3700.2,3700.1,6.46392965]
[1753207595761,1e-08,3700.2,3700.1,10.75632965]
[1753207595965,1e-08,3700.2,3700.1,12.67932941]
[1753207597276,1e-08,3700.2,3700.1,8.05442941]
[1753207597487,1e-08,3700.2,3699.4,0.814]
[1753207597684,0.443,3700.1,3699.5,2.70304508]
[1753207597977,0.443,3700.1,3699.5,3.0]
[1753207598275,0.443,3700.1,3699.4,4.158]
[1753207598485,0.81858745,3700.1,3699.4,4.158]
[1753207598639,2.70275105,3700.0,3699.4,4.158]
[1753207599066,2.70278313,3699.9,3699.4,4.158]
[1753207599268,2.70286457,3699.8,3699.4,4.158]
[1753207599482,3.14586457,3699.8,3699.4,4.158]
[1753207599632,3.14586457,3699.8,3699.0,3.51742916]
[1753207599841,3.14586457,3699.8,3699.1,9.86034398]
[1753207599842,0.443,3699.8,3699.1,9.86034398]
[1753207600043,0.443,3699.8,3699.1,7.157]
[1753207600273,0.443,3699.8,3699.1,9.86035332]
[1753207600489,3.14586106,3699.8,3699.1,3.0]
[1753207600658,3.14586106,3699.8,3699.2,4.157]
[1753207601534,2.70297162,3699.7,3699.2,4.157]
[1753207601740,3.14597162,3699.7,3699.2,4.157]
[1753207601940,3.14597162,3699.7,3698.5,0.7777]
[1753207601941,0.58487585,3699.7,3698.5,0.7777]
[1753207602299,2.70333161,3699.2,3698.1,3.48279128]
[1753207602588,2.7032193,3699.3,3698.5,2.70378519]
[1753207602743,2.7032193,3699.3,3698.6,4.158]
[1753207602939,2.70316523,3699.4,3698.6,4.158]
[1753207603183,2.70316523,3699.4,3698.7,0.02703652]
[1753207603341,2.70327185,3699.3,3698.6,4.158]
[1753207604240,0.6103,3699.6,3698.7,2.73063634]
[1753207604472,2.7028488,3699.8,3698.8,3.50345462]
[1753207604677,1.0533,3699.9,3698.8,3.50345462]
[1753207604678,2.70292377,3699.7,3699.0,2.7033867]
[1753207605055,2.70287605,3699.8,3699.0,2.7033867]
[1753207605762,2.7029357,3699.7,3698.9,6.86148127]
[1753207605963,1.0533,3699.9,3699.0,2.70342212]
[1753207606184,2.70286887,3699.8,3699.0,2.70342212]
[1753207606565,2.70292782,3699.7,3699.0,2.70342212]
[1753207607102,2.70287192,3699.8,3698.9,5.05896486]
[1753207607250,2.70287192,3699.8,3699.0,2.70338829]
[1753207607454,0.1344,3699.6,3699.0,4.31106042]
[1753207607653,0.1344,3699.6,3699.1,0.24978507]
[1753207607892,0.1344,3699.6,3699.2,0.69518507]
[1753207608177,0.1344,3699.6,3699.3,0.24979124]
[1753207608393,0.1344,3699.6,3699.4,0.2768351]
[1753207608582,0.1344,3699.6,3699.5,0.24980369]
[1753207610389,0.1344,3699.6,3699.5,2.95287167]
[1753207610714,0.002,3700.0,3699.5,6.30478503]
[1753207610934,0.002,3700.0,3699.9,2.70277575]
[1753207611226,0.002,3700.0,3699.9,2.97960719]
[1753207611717,0.002,3700.0,3699.9,7.58300719]
[1753207612022,0.002,3700.0,3699.9,7.55597944]
[1753207612190,0.002,3700.0,3699.9,8.59530857]
[1753207612575,0.002,3700.0,3699.9,12.42090857]
[1753207613312,1e-08,3700.0,3699.9,12.42090857]
[1753207614790,1e-08,3700.0,3699.9,8.26290857]
[1753207615088,1e-08,3700.0,3699.9,12.42090857]
[1753207615411,1e-08,3700.0,3699.9,11.97450854]
[1753207616293,1e-08,3700.0,3699.9,12.41990854]
[1753207618201,1e-08,3700.0,3699.9,11.14790854]
[1753207618405,1e-08,3700.0,3699.9,11.59324934]
[1753207618979,1e-08,3700.0,3699.9,11.59332421]
[1753207619199,1e-08,3700.0,3699.9,11.59332633]
[1753207619403,1e-08,3700.0,3699.9,6.99092633]
[1753207619602,1e-08,3700.0,3699.9,10.1085972]
[1753207622028,1e-08,3700.0,3699.9,10.10333141]
[1753207622443,1e-08,3700.0,3699.9,10.54873141]
[1753207622904,1e-08,3700.0,3699.9,11.36363141]
[1753207624521,1e-08,3700.0,3699.9,10.10333141]
[1753207625187,1e-08,3700.0,3699.9,0.24882145]
[1753207625533,0.13440001,3700.0,3699.9,7.1085972]
[1753207625736,1e-08,3700.0,3699.9,7.1085972]
[1753207626025,1e-08,3700.0,3699.9,11.67224579]
[1753207626229,1e-08,3700.0,3699.9,11.42342434]
[1753207626385,1e-08,3700.0,3699.9,11.67250794]
[1753207627239,1e-08,3700.0,3699.9,11.67253477]
[1753207629247,1e-08,3700.0,3699.9,17.20273477]
[1753207630265,1e-08,3700.0,3699.9,17.20173477]
[1753207631716,1e-08,3700.0,3699.9,10.79628618]
[1753207631915,1e-08,3700.0,3699.9,11.95228618]
[1753207632431,1e-08,3700.0,3699.9,7.24228618]
[1753207635358,1e-08,3700.0,3699.9,7.24279835]
[1753207637035,1e-08,3700.0,3699.9,10.24279835]
[1753207637358,1e-08,3700.0,3699.9,12.87146413]
[1753207638222,1e-08,3700.0,3699.9,17.58146413]
[1753207638876,1e-08,3700.0,3699.9,18.13146413]
[1753207639038,1e-08,3700.0,3699.9,20.97546413]
[1753207640654,1e-08,3700.0,3699.9,16.81946413]
[1753207641087,1e-08,3700.0,3699.9,20.97546413]
[1753207644381,0.002,3700.8,3700.7,3.45899147]
[1753207644566,0.002,3700.8,3700.7,10.89182324]
[1753207644766,0.002,3700.8,3700.7,13.09983882]
[1753207644967,0.002,3700.8,3700.7,13.55963882]
[1753207645305,1e-08,3700.8,3700.7,13.55963882]
[1753207645608,1e-08,3701.2,3701.1,0.7896]
[1753207645805,1e-08,3701.2,3701.1,8.35682885]
[1753207646002,1e-08,3701.2,3701.1,9.70589561]
[1753207646171,1e-08,3701.2,3701.1,12.86759504]
[1753207646372,1e-08,3701.2,3701.1,12.40779504]
[1753207646572,1e-08,3701.2,3701.1,12.86759504]
[1753207646967,1e-08,3701.2,3701.1,8.25179504]
[1753207647170,1e-08,3701.2,3701.1,12.40679504]
[1753207647595,1e-08,3701.2,3701.1,12.86659504]
[1753207649998,1e-08,3701.2,3701.1,8.25179504]
[1753207650305,1e-08,3701.2,3701.1,11.61719504]
[1753207651381,1e-08,3701.2,3701.1,12.07699504]
[1753207653176,1e-08,3701.5,3701.4,5.70168044]
[1753207653381,1e-08,3701.5,3701.4,10.1054903]
[1753207653621,1e-08,3701.5,3701.4,10.44988044]
[1753207653814,1e-08,3701.5,3701.4,10.69895926]
[1753207654017,1e-08,3701.5,3701.4,11.45215926]
[1753207654222,1e-08,3701.5,3701.4,14.15125102]
[1753207655164,1e-08,3701.5,3701.4,13.69145102]
[1753207655333,1e-08,3701.5,3701.4,14.15125102]
[1753207656564,1e-08,3702.0,3701.9,2.70131554]
[1753207656771,1e-08,3702.0,3701.9,11.49542358]
[1753207656975,1e-08,3702.0,3701.9,12.06261043]
[1753207657415,1e-08,3702.7,3702.6,2.70080483]
[1753207657619,1e-08,3702.7,3702.6,11.38741472]
[1753207658421,1e-08,3703.0,3702.8,2.70065896]
[1753207658769,0.6123,3704.7,3704.3,2.69956536]
[1753207658925,0.6123,3704.7,3704.3,7.10747525]
[1753207659949,0.4514,3704.4,3704.3,7.10747525]
[1753207660154,0.4514,3704.4,3704.3,0.24890989]
[1753207660337,0.4514,3704.4,3704.3,4.40890989]
[1753207661042,1.43799836,3704.4,3704.2,4.158]
[1753207661436,1.43799836,3704.4,3703.0,0.8091]
[1753207661437,0.98859836,3704.4,3703.0,0.8091]
[1753207661762,0.98859836,3704.4,3703.1,7.10671662]
[1753207661763,0.6103,3703.8,3703.1,7.10671662]
[1753207661950,0.4494,3703.7,3703.6,2.7000756]
[1753207662136,0.6103,3704.1,3703.9,2.69983322]
[1753207662340,0.6103,3704.1,3704.0,6.85878401]
[1753207662536,0.6123,3704.4,3704.0,4.159]
[1753207662724,0.6123,3704.4,3704.3,2.69956536]
[1753207662928,0.6123,3704.4,3704.3,4.16]
[1753207663646,1.0617,3704.4,3704.3,4.16]
[1753207664926,4.13750614,3704.4,3704.3,4.16]
[1753207665128,1.43801365,3704.4,3704.3,4.16]
[1753207666738,2.69957596,3704.3,3703.7,3.0]
[1753207666939,0.4494,3704.2,3703.8,4.40432105]
[1753207667148,3.31181308,3704.4,3703.9,0.24732105]
[1753207667344,0.4494,3704.1,3704.0,4.40432105]
[1753207668130,0.1344,3704.3,3704.0,4.40432105]
[1753207668333,0.4543,3704.2,3704.1,0.24732105]
[1753207670976,0.84434962,3704.2,3703.9,4.154]
[1753207671158,0.1344,3704.0,3703.8,4.154]
[1753207671493,0.4543,3704.1,3703.9,0.2479356]
[1753207671780,0.4543,3704.1,3703.8,4.154]
[1753207672271,0.4543,3704.0,3703.8,4.154]
[1753207672428,0.4543,3703.9,3703.8,4.154]
[1753207673033,1.0646,3703.9,3703.5,0.1344]
[1753207673234,0.4543,3703.8,3703.6,4.154]
[1753207673475,0.4543,3703.7,3703.6,4.154]
[1753207674281,0.6103,3703.5,3702.8,2.7006013]
[1753207674440,0.4543,3703.4,3702.9,4.154]
[1753207674645,0.1344,3703.1,3703.0,4.154]
[1753207674950,3.28914017,3703.1,3703.0,4.154]
[1753207675376,3.28914017,3703.1,3702.8,4.155]
[1753207675578,2.70058602,3702.9,3702.8,4.155]
[1753207675776,0.4543,3702.9,3702.8,4.155]
[1753207676166,3.31072107,3703.2,3702.8,4.155]
[1753207676167,0.6103,3703.2,3702.8,4.8675933]
[1753207676335,0.6103,3703.2,3702.9,0.02700586]
[1753207676542,0.6103,3703.2,3702.8,4.84058672]
[1753207676789,0.1344,3703.3,3703.2,2.70036724]
[1753207676948,0.4543,3704.0,3703.4,2.70017817]
[1753207677150,0.5887,3704.0,3703.5,2.70013576]
[1753207677355,0.4543,3703.9,3703.4,2.70019779]
[1753207677556,0.1344,3704.0,3703.6,2.7000756]
[1753207677773,0.1344,3704.0,3703.5,4.156]
[1753207678093,0.4543,3703.9,3703.5,4.156]
[1753207678292,0.1344,3704.0,3703.2,0.1344]
[1753207678463,2.7000123,3703.7,3703.3,4.156]
[1753207678654,0.4543,3703.6,3703.3,4.156]
[1753207679364,0.6103,3703.9,3703.4,2.72715964]
[1753207679561,0.7447,3704.3,3703.9,2.69980281]
[1753207679880,0.7447,3704.3,3704.0,4.155]
[1753207680267,0.7447,3704.3,3704.0,6.85477169]
[1753207680467,0.7447,3704.3,3704.0,4.155]
[1753207681089,0.4543,3704.2,3704.0,4.155]
[1753207681512,0.7447,3704.3,3704.0,4.155]
[1753207681677,0.7447,3704.3,3704.1,2.69970324]
[1753207681880,0.7447,3704.3,3704.0,4.155]
[1753207682095,0.1344,3704.3,3704.1,2.6996699]
[1753207682408,0.1344,3704.3,3704.0,4.155]
[1753207682581,0.5887,3704.3,3704.0,4.155]
[1753207682913,0.1344,3704.3,3704.0,4.155]
[1753207683068,0.1344,3704.3,3704.0,6.85475408]
[1753207683413,0.4543,3704.2,3704.0,4.155]
[1753207683709,1.0646,3704.1,3704.0,4.154]
[1753207683912,1.0646,3704.1,3703.8,4.154]
[1753207684203,0.4543,3704.0,3703.8,4.154]
[1753207684607,0.4543,3704.0,3703.7,0.1344]
[1753207684813,0.4543,3703.9,3703.8,4.154]
[1753207685039,0.7447,3704.1,3703.8,4.154]
[1753207685445,1.199,3704.1,3703.8,4.154]
[1753207685645,1.40471535,3704.1,3703.8,4.154]
[1753207685950,2.69994744,3703.8,3703.5,4.153]
[1753207686109,0.4543,3703.7,3703.5,4.153]
[1753207687599,0.1344,3703.9,3703.5,4.153]
[1753207687801,0.1344,3703.9,3703.5,6.85310263]
[1753207688122,3.76431236,3704.1,3703.6,0.02700075]
[1753207688326,0.7447,3704.1,3703.6,0.02700075]
[1753207688495,1.0666,3704.4,3703.9,2.69985646]
[1753207688694,0.1344,3704.3,3703.9,2.72685502]
[1753207688895,0.1344,3704.3,3703.9,0.02699856]
[1753207689098,0.1344,3704.3,3703.9,2.72680724]
[1753207689707,0.1344,3704.3,3703.9,0.02699856]
[1753207690237,0.1344,3704.3,3703.8,6.85190217]
[1753207691041,3.28828586,3704.3,3703.8,4.152]
[1753207691243,3.1539404,3704.2,3703.8,4.152]
[1753207691742,0.4543,3704.2,3703.8,4.152]
[1753207692095,0.4543,3704.1,3703.7,0.1344]
[1753207692304,0.4543,3704.0,3703.8,4.152]
[1753207692614,2.69964094,3704.2,3703.9,0.001]
[1753207692875,3.63892306,3704.0,3703.9,0.001]
[1753207693369,4.09322306,3704.0,3703.9,0.001]
[1753207694284,3.31008401,3704.0,3703.9,0.001]
[1753207694465,3.44448401,3704.0,3703.9,0.001]
[1753207694778,3.89878401,3704.0,3703.9,0.001]
[1753207695147,3.44448401,3704.0,3703.9,0.001]
[1753207695773,3.89878401,3704.0,3703.9,0.001]
[1753207695987,1.199,3704.0,3703.9,0.001]
[1753207696136,0.1344,3704.0,3703.9,0.001]
[1753207697358,3.44432808,3704.3,3703.9,0.001]
[1753207697580,2.69964035,3704.2,3703.9,0.001]
[1753207697754,0.7447,3704.3,3703.9,0.001]
[1753207698143,2.69976692,3704.1,3703.9,0.001]
[1753207698485,2.69978401,3704.0,3703.9,0.001]
[1753207698981,3.14498401,3704.0,3703.9,0.001]
[1753207699842,2.69978401,3704.0,3703.9,0.001]
[1753207701272,3.14498401,3704.0,3703.9,0.001]
[1753207702480,3.04437193,3704.1,3703.9,0.001]
[1753207702681,2.69973901,3704.1,3703.9,0.001]
[1753207703004,2.69966803,3704.2,3703.9,0.001]
[1753207703305,0.1344,3704.2,3703.9,0.001]
[1753207703465,2.69978401,3704.0,3703.9,0.001]
[1753207703881,2.69973972,3704.1,3703.9,0.001]
[1753207704303,2.69974239,3704.1,3703.9,0.001]
[1753207704604,0.1344,3704.2,3703.9,0.001]
[1753207705113,0.002,3704.4,3704.0,0.4424]
[1753207705482,0.002,3704.4,3704.0,2.6997491]
[1753207705683,0.002,3704.4,3703.9,3.36252438]
[1753207705891,0.002,3704.4,3703.9,2.86218438]
[1753207706070,0.002,3704.4,3703.9,0.1354]
[1753207706266,0.002,3704.4,3704.0,2.69978006]
[1753207706471,0.002,3704.4,3703.9,2.86223551]
[1753207706710,0.002,3704.4,3704.0,0.4424]
[1753207707078,2.7015227,3704.4,3703.9,0.1354]
[1753207707383,3.14478408,3704.3,3704.0,4.152]
[1753207707592,2.69958408,3704.3,3704.0,4.152]
[1753207707803,2.6996437,3704.2,3703.9,0.1354]
[1753207708119,2.69978401,3704.0,3703.9,0.001]
[1753207708270,3.49383285,3704.0,3703.9,0.001]
[1753207708467,3.93903285,3704.0,3703.9,0.001]
[1753207708924,4.54933285,3704.0,3703.9,0.001]
[1753207709424,5.09933285,3704.0,3703.9,0.001]
[1753207710615,8.70133285,3704.0,3703.9,0.001]
[1753207710773,7.90728401,3704.0,3703.9,0.001]
[1753207712503,8.45728401,3704.0,3703.9,0.001]
[1753207712878,11.45728401,3704.0,3703.9,0.001]
[1753207713915,11.45728401,3704.0,3703.9,0.25166971]
[1753207715002,11.45728401,3704.0,3703.9,1e-08]
[1753207715230,2.70036724,3703.2,3703.1,0.001]
[1753207715444,7.59706724,3703.2,3703.1,0.001]
[1753207715735,8.04226724,3703.2,3703.1,0.001]
[1753207716239,7.59706724,3703.2,3703.1,0.001]
[1753207716399,8.04226724,3703.2,3703.1,0.001]
[1753207717238,8.94484786,3703.2,3703.1,0.001]
[1753207717440,8.04226724,3703.2,3703.1,0.001]
[1753207717941,2.70087778,3702.5,3702.4,0.001]
[1753207718148,6.85287778,3702.5,3702.4,0.001]
[1753207718364,7.90837778,3702.5,3702.4,0.001]
[1753207718648,3.25095073,3702.4,3701.1,0.001]
[1753207718867,0.1344,3701.6,3701.1,0.1354]
[1753207719237,4.152,3701.5,3701.1,0.1354]
[1753207719443,2.70182643,3701.2,3701.1,0.001]
[1753207720162,3.70190311,3701.2,3701.1,0.001]
[1753207720361,4.14710311,3701.2,3701.1,0.001]
[1753207720860,3.70190311,3701.2,3701.1,0.001]
[1753207721156,4.14710311,3701.2,3701.1,0.001]
[1753207722267,0.55,3700.9,3699.9,0.001]
[1753207722472,4.153,3700.8,3700.0,0.4424]
[1753207722677,0.1344,3700.4,3700.0,0.4424]
[1753207722833,4.2874,3700.4,3700.0,0.4424]
[1753207723029,2.70249585,3700.3,3700.0,0.4424]
[1753207723231,4.153,3700.4,3699.9,0.001]
[1753207723472,0.1344,3700.1,3699.9,0.001]
[1753207724259,6.8567027,3700.0,3699.9,0.001]
[1753207724452,1.00007668,3700.0,3699.9,0.001]
[1753207724652,0.1344,3700.1,3699.9,0.001]
[1753207724875,4.154,3700.0,3699.9,0.001]
[1753207726087,0.1344,3700.1,3700.0,2.7027027]
[1753207726429,0.1344,3700.1,3700.0,3.1451027]
[1753207726635,0.1344,3700.4,3700.0,4.54189083]
[1753207726856,0.1344,3700.4,3700.1,3.14502965]
[1753207727139,0.1344,3700.4,3700.2,0.24949346]
[1753207727346,0.1344,3700.4,3700.3,0.24949346]
[1753207727753,2.70202687,3701.0,3700.3,3.39943109]
[1753207727954,0.1344,3700.8,3700.4,2.95175079]
[1753207728154,0.1344,3700.8,3700.5,0.24934751]
[1753207728353,0.1344,3700.8,3700.6,0.24934751]
[1753207728549,0.1344,3700.8,3700.7,0.24934751]
[1753207728774,4.2884,3700.8,3700.7,0.24934751]
[1753207729075,0.1344,3700.8,3700.7,3.39913898]
[1753207729374,0.1344,3701.2,3700.8,2.70206531]
[1753207729535,0.1344,3701.2,3701.0,2.70192473]
[1753207729741,4.154,3701.7,3701.1,3.14949943]
[1753207730095,4.154,3701.7,3701.4,2.70164785]
[1753207730319,4.154,3701.7,3701.4,3.14924785]
[1753207730700,4.154,3701.7,3701.5,2.70159613]
[1753207731006,4.154,3701.8,3701.6,0.4476]
[1753207731581,4.154,3701.8,3701.4,0.7697]
[1753207732318,4.154,3701.8,3701.4,3.91897731]
[1753207732513,4.154,3701.8,3701.5,0.4476]
[1753207733095,6.85543846,3701.8,3701.4,0.7697]
[1753207733419,0.1344,3701.6,3701.4,0.7697]
[1753207734576,0.1344,3701.6,3701.4,3.91892952]
[1753207734875,0.1344,3701.6,3701.4,1.2173]
[1753207736123,0.1344,3701.6,3701.4,1.2183]
[1753207736445,0.1344,3701.6,3701.5,0.4476]
[1753207738905,0.1344,3701.6,3701.4,0.7707]
[1753207739103,0.1344,3701.6,3701.4,1.2183]
[1753207739410,0.1344,3701.6,3701.5,0.4476]
[1753207739609,0.1344,3701.6,3701.4,0.7707]
[1753207739812,0.1344,3701.6,3701.4,0.001]
[1753207740244,2.83594772,3701.6,3701.4,0.001]
[1753207740394,2.70160745,3701.5,3701.4,0.001]
[1753207740783,6.85560745,3701.5,3701.4,0.001]
[1753207740980,7.93310745,3701.5,3701.4,0.001]
[1753207741375,7.93310745,3701.5,3701.4,0.25051706]
[1753207741599,7.23426379,3701.5,3701.4,0.001]
[1753207741797,7.70146379,3701.5,3701.4,0.25054033]
[1753207742242,8.86176379,3701.5,3701.4,0.25054033]
[1753207742398,8.86176379,3701.5,3701.4,0.001]
[1753207743303,7.23426379,3701.5,3701.4,0.001]
[1753207743504,7.70146379,3701.5,3701.4,0.001]
[1753207744494,4.154,3701.5,3701.4,0.001]
[1753207744700,4.154,3701.5,3701.4,0.25106049]
[1753207745604,6.85560745,3701.5,3701.4,0.25106049]
[1753207745820,4.6212,3701.5,3701.4,0.25106049]
[1753207746000,4.154,3701.5,3701.4,0.25106049]
[1753207746195,7.60131573,3701.5,3701.4,0.25106049]
[1753207746432,19.84298711,3701.5,3701.4,0.25106049]
[1753207746645,20.39298711,3701.5,3701.4,0.25106049]
[1753207748539,19.92578711,3701.5,3701.4,0.25106049]
[1753207749060,20.39298711,3701.5,3701.4,0.25106049]
[1753207749766,2.70241494,3700.4,3700.1,0.8197]
[1753207749971,6.85644922,3700.4,3699.9,0.001]
[1753207750170,2.83710204,3700.1,3699.9,0.001]
[1753207750340,2.7027027,3700.0,3699.9,0.001]
[1753207751165,4.154,3700.2,3699.9,0.001]
[1753207751639,2.70264623,3700.1,3699.9,0.001]
[1753207751840,6.8565699,3700.2,3699.9,0.001]
[1753207752040,1.21237234,3701.4,3700.0,0.7862]
[1753207752221,1.21237234,3701.4,3700.0,1.2338]
[1753207752222,0.1344,3700.5,3700.0,1.2338]
[1753207752427,0.1344,3700.5,3700.1,0.4476]
[1753207752622,2.83674012,3700.5,3700.1,0.4476]
[1753207752936,4.154,3700.4,3700.3,2.70248358]
[1753207753140,0.1344,3700.5,3700.3,0.4476]
[1753207753337,0.6103,3701.4,3700.3,3.12313489]
[1753207753662,0.1344,3700.7,3700.5,3.45752891]
[1753207753860,0.1344,3700.7,3700.6,3.14986449]
[1753207754026,4.154,3701.0,3700.6,0.4476]
[1753207754225,4.2884,3701.0,3700.7,3.14973869]
[1753207754439,4.2884,3701.0,3700.8,3.14971801]
[1753207754642,4.2884,3701.0,3700.8,0.4476]
[1753207755047,4.2884,3701.0,3700.7,2.70216225]
[1753207755248,0.1344,3701.0,3700.9,0.4476]
[1753207755460,0.1344,3701.0,3700.9,3.14964544]
[1753207755661,4.154,3701.3,3701.1,2.70184792]
[1753207755852,4.2884,3701.4,3701.2,0.4476]
[1753207756053,4.2884,3701.4,3701.3,0.4476]
[1753207756226,0.1344,3701.4,3701.3,3.14935343]
[1753207756429,0.6103,3702.2,3701.3,0.4476]
[1753207756639,0.1344,3702.0,3701.6,2.70146803]
[1753207757041,0.1344,3702.0,3701.6,3.14906803]
[1753207757977,0.1344,3702.0,3701.6,0.4476]
[1753207758283,0.1344,3702.0,3701.5,2.70159078]
[1753207758452,0.1344,3702.0,3701.3,3.29003367]
[1753207758453,0.1344,3702.0,3701.6,2.70152069]
[1753207758882,0.1344,3702.0,3701.6,3.15542069]
[1753207759081,0.1344,3702.0,3701.7,1.2127]
[1753207759279,4.2884,3702.0,3701.7,3.9141464]
[1753207759796,4.2884,3702.0,3701.7,1.2127]
[1753207759986,4.2884,3702.0,3701.7,0.7588]
[1753207760183,0.6103,3701.9,3701.3,0.1344]
[1753207760381,0.1344,3701.3,3700.8,0.4539]
[1753207760546,0.1344,3701.3,3700.9,0.4539]
[1753207761382,0.1344,3701.3,3700.9,3.15593196]
[1753207761581,2.83616961,3701.3,3700.8,0.1344]
[1753207761786,2.83616961,3701.3,3700.9,0.25100887]
[1753207761973,0.1344,3701.3,3701.0,0.25100887]
[1753207762171,0.1344,3701.3,3701.1,0.25100887]
[1753207762376,0.1344,3701.3,3701.2,0.25100887]
[1753207762807,0.1344,3701.3,3701.1,2.70182704]
[1753207762995,0.1344,3701.3,3701.2,0.4539]
[1753207763463,4.154,3701.6,3701.3,3.51990398]
[1753207763852,4.154,3701.6,3701.4,0.4539]
[1753207764405,6.85556085,3701.6,3700.9,2.70199104]
[1753207764618,0.1344,3701.5,3701.0,0.8085]
[1753207764917,0.1344,3701.5,3701.1,3.15575526]
[1753207765117,0.1344,3701.5,3701.3,2.70175342]
[1753207765285,4.154,3701.7,3701.3,2.72877095]
[1753207765612,4.154,3701.7,3701.4,0.4539]
[1753207765916,0.1344,3701.5,3701.0,0.8085]
[1753207766275,0.1344,3701.5,3701.0,1.2624]
[1753207766788,1.10353494,3701.5,3700.9,0.1344]
[1753207766994,0.6103,3701.4,3700.4,0.7735]
[1753207767204,2.83649492,3700.9,3700.4,3.7735]
[1753207767388,0.1344,3700.9,3700.5,0.4539]
[1753207767970,0.1344,3700.9,3700.5,3.15621216]
[1753207768206,0.1344,3700.9,3700.6,0.4539]
[1753207768571,0.1344,3700.9,3700.6,2.70226312]
[1753207768774,0.1344,3700.9,3700.8,2.70211846]
[1753207769074,0.1344,3701.5,3701.1,2.70185346]
[1753207769273,0.1344,3701.5,3701.1,0.02701899]
[1753207769483,0.1344,3701.5,3701.2,0.4539]
[1753207769883,0.1344,3701.5,3700.8,1.3618]
[1753207770090,2.70168044,3701.4,3700.8,0.7735]
[1753207770340,0.1344,3701.2,3700.8,0.7735]
[1753207771418,0.1344,3701.2,3700.9,2.70204083]
[1753207771637,0.1344,3701.2,3700.8,3.92950304]
[1753207771804,0.1344,3701.2,3700.8,3.47560304]
[1753207772005,0.1344,3701.2,3700.9,0.4539]
[1753207772324,0.1344,3701.2,3701.0,0.4539]
[1753207772698,0.1344,3701.2,3700.8,0.7735]
[1753207772892,2.70196096,3701.1,3700.6,0.1344]
[1753207773133,2.70196096,3701.1,3700.5,0.7796]
[1753207773134,0.1344,3700.8,3700.4,2.70240625]
[1753207773307,0.1344,3700.8,3700.3,2.70245347]
[1753207773504,0.1344,3700.8,3700.2,0.7796]
[1753207773708,3.31249147,3700.7,3700.1,0.1354]
[1753207774020,0.1344,3700.5,3700.2,2.70254038]
[1753207774225,0.1344,3700.5,3700.1,2.70361228]
[1753207774427,0.1344,3700.5,3700.3,0.4539]
[1753207774800,0.1344,3700.5,3700.1,2.70361228]
[1753207775000,2.83674213,3700.5,3700.1,0.4549]
[1753207775203,2.83674213,3700.5,3700.1,0.001]
[1753207775603,2.70255661,3700.2,3700.1,0.001]
[1753207776106,3.15155661,3700.2,3700.1,0.001]
[1753207777722,2.70255661,3700.2,3700.1,0.001]
[1753207778326,3.31279755,3700.3,3700.1,0.001]
[1753207778528,0.6103,3700.3,3700.1,0.001]
[1753207778844,6.85855661,3700.2,3700.1,0.001]
[1753207779004,7.30755661,3700.2,3700.1,0.001]
[1753207779210,6.85855661,3700.2,3700.1,0.001]
[1753207779455,7.30755661,3700.2,3700.1,0.001]
[1753207779840,2.70222469,3700.7,3700.1,0.001]
[1753207779841,1.03954,3701.2,3700.1,0.001]
[1753207780039,2.83685777,3700.4,3700.1,0.001]
[1753207780371,2.70255661,3700.2,3700.1,0.001]
[1753207780654,3.15150864,3700.3,3700.1,0.001]
[1753207780958,7.31355661,3700.2,3700.1,0.001]
[1753207781251,11.47385661,3700.2,3700.1,0.001]
[1753207782031,0.6103,3700.3,3700.1,0.001]
[1753207782231,7.31555661,3700.2,3700.1,0.001]
[1753207782554,7.86555661,3700.2,3700.1,0.001]
[1753207783358,7.31555661,3700.2,3700.1,0.001]
[1753207784239,7.86555661,3700.2,3700.1,0.001]
[1753207785262,11.47585661,3700.2,3700.1,0.001]
[1753207787760,11.47585661,3700.2,3699.7,0.001]
[1753207787761,3.2528488,3699.8,3699.7,1e-08]
[1753207787974,6.86351412,3699.3,3699.2,0.001]
[1753207788294,22.1916855,3699.3,3699.2,0.001]
[1753207788503,22.6334855,3699.3,3699.2,0.001]
[1753207788996,22.6334855,3699.3,3698.6,0.001]
[1753207788997,6.86373336,3699.0,3698.6,0.001]